[Event "Late-Titled-Tuesday-Blitz-September-26-2023"]
[Site "Chess.com"]
[Date "2023.09.26"]
[Round "1"]
[White "pirulillo"]
[Black "SaqoChess_Twitch"]
[Result "1-0"]
[WhiteElo "2371"]
[BlackElo "2645"]
[TimeControl "180+1"]
[EndTime "14:07:33 PDT"]
[Termination "pirulillo won by checkmate"]

1. e4 {[%clk 0:03:00.3]} 1... c5 {[%clk 0:02:57.7]} 2. Nf3 {[%clk 0:03:00]} 2...
d6 {[%clk 0:02:58.1]} 3. d4 {[%clk 0:02:59.5]} 3... cxd4 {[%clk 0:02:59]} 4.
Nxd4 {[%clk 0:02:59.8]} 4... Nf6 {[%clk 0:02:59.4]} 5. Nc3 {[%clk 0:03:00.3]}
5... g6 {[%clk 0:02:58]} 6. Be2 {[%clk 0:02:58.5]} 6... Bg7 {[%clk 0:02:58.1]}
7. O-O {[%clk 0:02:57.6]} 7... O-O {[%clk 0:02:58.3]} 8. Bg5 {[%clk 0:02:52.6]}
8... Nc6 {[%clk 0:02:58]} 9. Nb3 {[%clk 0:02:50.7]} 9... h6 {[%clk 0:02:56.7]}
10. Bh4 {[%clk 0:02:50]} 10... g5 {[%clk 0:02:57.2]} 11. Bg3 {[%clk 0:02:49.2]}
11... Be6 {[%clk 0:02:56.4]} 12. Re1 {[%clk 0:02:45.9]} 12... b6 {[%clk
0:02:55.3]} 13. Bf1 {[%clk 0:02:42.2]} 13... d5 {[%clk 0:02:51.2]} 14. Bb5
{[%clk 0:02:03]} 14... Nb4 {[%clk 0:02:43.7]} 15. e5 {[%clk 0:01:51.6]} 15...
Ne4 {[%clk 0:02:37.3]} 16. Nd4 {[%clk 0:01:29.7]} 16... a6 {[%clk 0:02:31.4]}
17. Bf1 {[%clk 0:01:22.7]} 17... Nxg3 {[%clk 0:02:26.4]} 18. hxg3 {[%clk
0:01:21]} 18... Qc7 {[%clk 0:02:27]} 19. a3 {[%clk 0:01:16.7]} 19... Nc6 {[%clk
0:02:26.1]} 20. Nxe6 {[%clk 0:01:13.2]} 20... fxe6 {[%clk 0:02:25.9]} 21. Qg4
{[%clk 0:01:12.3]} 21... Qc8 {[%clk 0:02:16.5]} 22. f4 {[%clk 0:01:07.3]} 22...
gxf4 {[%clk 0:02:06.7]} 23. gxf4 {[%clk 0:01:08.2]} 23... Kh8 {[%clk 0:02:07.1]}
24. Bd3 {[%clk 0:01:06.4]} 24... Nd4 {[%clk 0:02:06.4]} 25. Qg6 {[%clk
0:00:59.2]} 25... Nf5 {[%clk 0:01:37]} 26. g4 {[%clk 0:00:57.5]} 26... Qc5+
{[%clk 0:01:37.2]} 27. Kf1 {[%clk 0:00:47.3]} 27... Rg8 {[%clk 0:01:00.8]} 28.
gxf5 {[%clk 0:00:44]} 28... Bf8 {[%clk 0:01:01.3]} 29. Qf7 {[%clk 0:00:26.4]}
29... Qg1+ {[%clk 0:00:51.2]} 30. Ke2 {[%clk 0:00:26.4]} 30... Qg4+ {[%clk
0:00:51.4]} 31. Ke3 {[%clk 0:00:21.7]} 31... Qg3+ {[%clk 0:00:48]} 32. Ke2
{[%clk 0:00:20.4]} 32... Qg4+ {[%clk 0:00:48]} 33. Ke3 {[%clk 0:00:20.4]} 33...
Qg3+ {[%clk 0:00:24.6]} 34. Kd2 {[%clk 0:00:18.5]} 34... Qxf4+ {[%clk
0:00:24.7]} 35. Kd1 {[%clk 0:00:18.6]} 35... Rg2 {[%clk 0:00:25.1]} 36. Ne2
{[%clk 0:00:17.8]} 36... Qxe5 {[%clk 0:00:18.9]} 37. fxe6 {[%clk 0:00:16.2]}
37... Rg7 {[%clk 0:00:17.1]} 38. Qf5 {[%clk 0:00:15.5]} 38... Qxb2 {[%clk
0:00:16.2]} 39. Kd2 {[%clk 0:00:14.7]} 39... Rc8 {[%clk 0:00:14.7]} 40. Rg1
{[%clk 0:00:13.8]} 40... a5 {[%clk 0:00:04.8]} 41. Rxg7 {[%clk 0:00:13.5]} 41...
Qxg7 {[%clk 0:00:05.3]} 42. Rg1 {[%clk 0:00:13.9]} 42... Qf6 {[%clk 0:00:02.5]}
43. Qh7# {[%clk 0:00:13]} 1-0

[Event "Late-Titled-Tuesday-Blitz-September-26-2023"]
[Site "Chess.com"]
[Date "2023.09.26"]
[Round "1"]
[White "artin10862"]
[Black "Rainbow2014"]
[Result "1-0"]
[WhiteElo "2888"]
[BlackElo "2460"]
[TimeControl "180+1"]
[EndTime "14:07:34 PDT"]
[Termination "artin10862 won on time"]

1. d4 {[%clk 0:02:55.2]} 1... Nf6 {[%clk 0:02:59]} 2. c4 {[%clk 0:02:55.3]} 2...
e6 {[%clk 0:02:58.8]} 3. Nc3 {[%clk 0:02:51.7]} 3... Bb4 {[%clk 0:02:57.6]} 4.
e3 {[%clk 0:02:44.1]} 4... O-O {[%clk 0:02:48.5]} 5. Bd2 {[%clk 0:02:41]} 5...
d5 {[%clk 0:02:34.2]} 6. a3 {[%clk 0:02:29.1]} 6... Be7 {[%clk 0:02:25.3]} 7.
Nf3 {[%clk 0:02:28.2]} 7... b6 {[%clk 0:02:15.8]} 8. cxd5 {[%clk 0:02:25.8]}
8... exd5 {[%clk 0:02:12.2]} 9. Rc1 {[%clk 0:02:25]} 9... c5 {[%clk 0:02:11.9]}
10. Bd3 {[%clk 0:02:24.2]} 10... Ba6 {[%clk 0:02:09.7]} 11. Qe2 {[%clk
0:02:18.9]} 11... Bxd3 {[%clk 0:01:53.3]} 12. Qxd3 {[%clk 0:02:19.8]} 12... c4
{[%clk 0:01:49.3]} 13. Qe2 {[%clk 0:02:07.5]} 13... Nc6 {[%clk 0:01:47.4]} 14.
Ne5 {[%clk 0:02:05.5]} 14... Rc8 {[%clk 0:01:41.2]} 15. O-O {[%clk 0:02:01]}
15... a6 {[%clk 0:01:37.3]} 16. f4 {[%clk 0:02:00.7]} 16... b5 {[%clk
0:01:36.7]} 17. Be1 {[%clk 0:02:00.7]} 17... Ne4 {[%clk 0:01:31.5]} 18. Qf3
{[%clk 0:01:25.4]} 18... Nxc3 {[%clk 0:01:24.2]} 19. Bxc3 {[%clk 0:01:24.9]}
19... f6 {[%clk 0:01:21.8]} 20. Nxc6 {[%clk 0:01:16]} 20... Rxc6 {[%clk
0:01:22.7]} 21. e4 {[%clk 0:01:16.6]} 21... dxe4 {[%clk 0:01:07.8]} 22. Qxe4
{[%clk 0:01:17.5]} 22... Rd6 {[%clk 0:01:05.4]} 23. Rfe1 {[%clk 0:01:02]} 23...
Rd7 {[%clk 0:01:05.4]} 24. Qe6+ {[%clk 0:01:00.7]} 24... Kh8 {[%clk 0:01:05]}
25. Qxa6 {[%clk 0:01:00.9]} 25... Qb8 {[%clk 0:01:00.5]} 26. Qc6 {[%clk
0:00:54.4]} 26... Rfd8 {[%clk 0:00:58.7]} 27. Ba5 {[%clk 0:00:52.7]} 27... Rd6
{[%clk 0:00:37.8]} 28. Qc7 {[%clk 0:00:38.3]} 28... Qa8 {[%clk 0:00:27.8]} 29.
Qxe7 {[%clk 0:00:22.5]} 29... R6d7 {[%clk 0:00:04.5]} 30. Bxd8 {[%clk
0:00:17.9]} 30... Rxe7 {[%clk 0:00:04.5]} 31. Bxe7 {[%clk 0:00:18.8]} 31... h5
{[%clk 0:00:04.4]} 32. Bb4 {[%clk 0:00:15.8]} 32... Qd5 {[%clk 0:00:03.7]} 33.
Bc3 {[%clk 0:00:15.2]} 33... h4 {[%clk 0:00:03.9]} 34. Re3 {[%clk 0:00:15.3]}
34... g5 {[%clk 0:00:03.5]} 35. fxg5 {[%clk 0:00:14.7]} 35... Qxg5 {[%clk
0:00:03.8]} 36. Rce1 {[%clk 0:00:14.8]} 36... Qf4 {[%clk 0:00:02.6]} 37. Rf3
{[%clk 0:00:13.8]} 37... Qg4 {[%clk 0:00:02.5]} 38. d5 {[%clk 0:00:10.9]} 38...
Kg7 {[%clk 0:00:02.2]} 39. Rxf6 {[%clk 0:00:08.9]} 39... Qc8 {[%clk 0:00:01.1]}
40. Rc6+ {[%clk 0:00:07.7]} 1-0

[Event "Late-Titled-Tuesday-Blitz-September-26-2023"]
[Site "Chess.com"]
[Date "2023.09.26"]
[Round "1"]
[White "chessisveryfun1264"]
[Black "Inepton_Fermion"]
[Result "0-1"]
[WhiteElo "2635"]
[BlackElo "2364"]
[TimeControl "180+1"]
[EndTime "14:07:34 PDT"]
[Termination "Inepton_Fermion won by checkmate"]

1. d4 {[%clk 0:03:00.9]} 1... Nf6 {[%clk 0:02:59.4]} 2. Bf4 {[%clk 0:02:59.9]}
2... e6 {[%clk 0:02:56.1]} 3. e3 {[%clk 0:02:59.2]} 3... h6 {[%clk 0:02:56.2]}
4. h3 {[%clk 0:02:58.1]} 4... d5 {[%clk 0:02:54.8]} 5. Nf3 {[%clk 0:02:57.6]}
5... Bd6 {[%clk 0:02:54.4]} 6. Nbd2 {[%clk 0:02:56.4]} 6... c5 {[%clk 0:02:54]}
7. c3 {[%clk 0:02:55.9]} 7... Nc6 {[%clk 0:02:54.2]} 8. Bd3 {[%clk 0:02:54.3]}
8... O-O {[%clk 0:02:53.7]} 9. dxc5 {[%clk 0:02:40.8]} 9... Bxc5 {[%clk
0:02:47.3]} 10. Qe2 {[%clk 0:02:36.2]} 10... Re8 {[%clk 0:02:44.2]} 11. e4
{[%clk 0:02:34.4]} 11... e5 {[%clk 0:02:41]} 12. Bg3 {[%clk 0:02:20.6]} 12... d4
{[%clk 0:02:41.3]} 13. O-O {[%clk 0:02:16.8]} 13... dxc3 {[%clk 0:02:22.7]} 14.
bxc3 {[%clk 0:02:14.8]} 14... Nh5 {[%clk 0:02:11.6]} 15. Bh2 {[%clk 0:02:13.3]}
15... Qf6 {[%clk 0:02:04.9]} 16. Nc4 {[%clk 0:02:05.9]} 16... Nf4 {[%clk
0:02:02.8]} 17. Bxf4 {[%clk 0:02:02.6]} 17... Qxf4 {[%clk 0:01:58.8]} 18. Ne3
{[%clk 0:01:40.4]} 18... Bxe3 {[%clk 0:01:49.1]} 19. fxe3 {[%clk 0:01:41.3]}
19... Qg3 {[%clk 0:01:48.2]} 20. Nd2 {[%clk 0:01:08]} 20... Be6 {[%clk
0:01:38.7]} 21. Bc4 {[%clk 0:01:02.2]} 21... Rad8 {[%clk 0:01:31]} 22. Bxe6
{[%clk 0:00:56.9]} 22... Rxe6 {[%clk 0:01:31.9]} 23. Rab1 {[%clk 0:00:51.7]}
23... b6 {[%clk 0:01:29.7]} 24. Rf3 {[%clk 0:00:44.9]} 24... Qg6 {[%clk
0:01:24.7]} 25. Rbf1 {[%clk 0:00:28]} 25... f6 {[%clk 0:01:16.1]} 26. Qc4 {[%clk
0:00:26.1]} 26... Qf7 {[%clk 0:01:12.4]} 27. Nb3 {[%clk 0:00:25.9]} 27... Red6
{[%clk 0:01:06.1]} 28. Qe2 {[%clk 0:00:22.9]} 28... a5 {[%clk 0:01:01]} 29. Rg3
{[%clk 0:00:22.1]} 29... a4 {[%clk 0:01:00.7]} 30. Nc1 {[%clk 0:00:21.9]} 30...
Rd2 {[%clk 0:00:53.3]} 31. Qg4 {[%clk 0:00:21.5]} 31... Na5 {[%clk 0:00:32.8]}
32. Qh4 {[%clk 0:00:18.9]} 32... Kh7 {[%clk 0:00:30.8]} 33. Rf5 {[%clk
0:00:17.3]} 33... Rd1+ {[%clk 0:00:30]} 34. Kh2 {[%clk 0:00:16.8]} 34... Rxc1
{[%clk 0:00:29.5]} 35. Qg4 {[%clk 0:00:07.4]} 35... Rdd1 {[%clk 0:00:26.7]} 36.
Rgf3 {[%clk 0:00:05.5]} 36... Rh1+ {[%clk 0:00:22.9]} 37. Kg3 {[%clk 0:00:04.5]}
37... Nc4 {[%clk 0:00:22.4]} 38. h4 {[%clk 0:00:02.5]} 38... Nd2 {[%clk
0:00:17.1]} 39. Rf2 {[%clk 0:00:03.1]} 39... Nf1+ {[%clk 0:00:11.9]} 40. Kf3
{[%clk 0:00:02.5]} 40... Re1 {[%clk 0:00:06.1]} 41. Qh5 {[%clk 0:00:01.5]} 41...
Rxe3+ {[%clk 0:00:05.8]} 42. Kg4 {[%clk 0:00:02]} 42... Rg3# {[%clk 0:00:05.1]}
0-1

[Event "Late-Titled-Tuesday-Blitz-September-26-2023"]
[Site "Chess.com"]
[Date "2023.09.26"]
[Round "1"]
[White "vladoboch"]
[Black "Lennis93"]
[Result "0-1"]
[WhiteElo "2408"]
[BlackElo "2730"]
[TimeControl "180+1"]
[EndTime "14:07:38 PDT"]
[Termination "Lennis93 won on time"]

1. e4 {[%clk 0:02:59.7]} 1... c5 {[%clk 0:02:59.1]} 2. Nf3 {[%clk 0:02:59.7]}
2... Nc6 {[%clk 0:02:59]} 3. Bb5 {[%clk 0:02:59.1]} 3... g6 {[%clk 0:02:58.7]}
4. O-O {[%clk 0:02:57.3]} 4... Bg7 {[%clk 0:02:58.4]} 5. Re1 {[%clk 0:02:52]}
5... Nf6 {[%clk 0:02:57.9]} 6. e5 {[%clk 0:02:51.3]} 6... Nd5 {[%clk 0:02:57.1]}
7. Nc3 {[%clk 0:02:52]} 7... Nc7 {[%clk 0:02:47.7]} 8. Bxc6 {[%clk 0:02:51.8]}
8... dxc6 {[%clk 0:02:48]} 9. h3 {[%clk 0:02:51.1]} 9... O-O {[%clk 0:02:41.6]}
10. d3 {[%clk 0:02:51.3]} 10... Ne6 {[%clk 0:02:41.6]} 11. Be3 {[%clk
0:02:46.7]} 11... Nd4 {[%clk 0:02:40.9]} 12. Ne4 {[%clk 0:02:40.9]} 12... b6
{[%clk 0:02:39.5]} 13. Nxd4 {[%clk 0:02:39.9]} 13... cxd4 {[%clk 0:02:39.5]} 14.
Bf4 {[%clk 0:02:40.8]} 14... f5 {[%clk 0:02:25.1]} 15. Nd2 {[%clk 0:02:25.2]}
15... Be6 {[%clk 0:02:17.9]} 16. Nf3 {[%clk 0:02:19]} 16... h6 {[%clk
0:02:17.8]} 17. h4 {[%clk 0:02:18.9]} 17... Qd5 {[%clk 0:02:15.4]} 18. Qd2
{[%clk 0:02:12.8]} 18... Kh7 {[%clk 0:02:15.3]} 19. a4 {[%clk 0:02:01]} 19... c5
{[%clk 0:02:10.9]} 20. a5 {[%clk 0:01:59.5]} 20... b5 {[%clk 0:02:11.1]} 21. a6
{[%clk 0:01:54.3]} 21... b4 {[%clk 0:02:04.7]} 22. Ra5 {[%clk 0:01:46.3]} 22...
Rfc8 {[%clk 0:02:03.9]} 23. Rea1 {[%clk 0:01:23.7]} 23... Rab8 {[%clk
0:02:03.8]} 24. b3 {[%clk 0:01:20.3]} 24... Rb6 {[%clk 0:02:03.3]} 25. Re1
{[%clk 0:01:01.9]} 25... Rcc6 {[%clk 0:02:02.6]} 26. h5 {[%clk 0:00:33.9]} 26...
g5 {[%clk 0:02:01.4]} 27. Bxg5 {[%clk 0:00:34.8]} 27... hxg5 {[%clk 0:02:01.5]}
28. Qxg5 {[%clk 0:00:35.6]} 28... Qd8 {[%clk 0:01:41.1]} 29. Qg6+ {[%clk
0:00:30.4]} 29... Kh8 {[%clk 0:01:39.4]} 30. Ng5 {[%clk 0:00:30.3]} 30... Qg8
{[%clk 0:01:23.8]} 31. h6 {[%clk 0:00:30.5]} 31... Bf8 {[%clk 0:01:20.7]} 32.
Qh5 {[%clk 0:00:18.5]} 32... Bd5 {[%clk 0:01:00.5]} 33. f4 {[%clk 0:00:14.8]}
33... Rxh6 {[%clk 0:00:58.7]} 34. Qe8 {[%clk 0:00:09.1]} 34... Rbc6 {[%clk
0:00:41.8]} 35. e6 {[%clk 0:00:06.7]} 35... Rcxe6 {[%clk 0:00:33.5]} 36. Rxe6
{[%clk 0:00:06]} 36... Rxe6 {[%clk 0:00:33.3]} 37. Rxc5 {[%clk 0:00:06.1]} 37...
Rd6 {[%clk 0:00:23.5]} 38. Rc8 {[%clk 0:00:03.6]} 38... Kg7 {[%clk 0:00:24]} 39.
Qb5 {[%clk 0:00:01.7]} 39... Be6 {[%clk 0:00:19.7]} 40. Qxb4 {[%clk 0:00:02]}
40... Bxc8 {[%clk 0:00:19.3]} 41. Qc5 {[%clk 0:00:02.1]} 41... Bd7 {[%clk
0:00:17.6]} 42. Qxa7 {[%clk 0:00:02.5]} 42... Qd5 {[%clk 0:00:17.2]} 43. Qb7
{[%clk 0:00:02.5]} 43... Qxb7 {[%clk 0:00:16.8]} 44. axb7 {[%clk 0:00:03.4]}
44... Rb6 {[%clk 0:00:17.2]} 45. Ne6+ {[%clk 0:00:03.8]} 45... Bxe6 {[%clk
0:00:17.1]} 0-1

[Event "Late-Titled-Tuesday-Blitz-September-26-2023"]
[Site "Chess.com"]
[Date "2023.09.26"]
[Round "1"]
[White "ZuraTqebuchava"]
[Black "Thjop"]
[Result "0-1"]
[WhiteElo "2248"]
[BlackElo "2585"]
[TimeControl "180+1"]
[EndTime "14:07:41 PDT"]
[Termination "Thjop won on time"]

1. e4 {[%clk 0:02:58.7]} 1... e6 {[%clk 0:02:39.3]} 2. d3 {[%clk 0:02:58.4]}
2... d5 {[%clk 0:02:39.3]} 3. Nd2 {[%clk 0:02:58.9]} 3... c5 {[%clk 0:02:39.2]}
4. Ngf3 {[%clk 0:02:56.5]} 4... Nc6 {[%clk 0:02:39.5]} 5. Be2 {[%clk 0:02:56.5]}
5... g6 {[%clk 0:02:39.7]} 6. O-O {[%clk 0:02:56.5]} 6... Bg7 {[%clk 0:02:40]}
7. exd5 {[%clk 0:02:55.1]} 7... exd5 {[%clk 0:02:39.7]} 8. Re1 {[%clk
0:02:55.1]} 8... Nge7 {[%clk 0:02:40]} 9. h3 {[%clk 0:02:52.2]} 9... O-O {[%clk
0:02:39.8]} 10. Bf1 {[%clk 0:02:48.1]} 10... Re8 {[%clk 0:02:39.8]} 11. c3
{[%clk 0:02:45.6]} 11... b6 {[%clk 0:02:39.8]} 12. Nb3 {[%clk 0:02:45.3]} 12...
Bb7 {[%clk 0:02:39.9]} 13. d4 {[%clk 0:02:38.6]} 13... c4 {[%clk 0:02:40]} 14.
Nbd2 {[%clk 0:02:35.2]} 14... b5 {[%clk 0:02:40.6]} 15. a3 {[%clk 0:02:29.4]}
15... a5 {[%clk 0:02:40.5]} 16. g3 {[%clk 0:02:28.7]} 16... Qb6 {[%clk
0:02:39.3]} 17. Bg2 {[%clk 0:02:26.6]} 17... b4 {[%clk 0:02:37.9]} 18. axb4
{[%clk 0:02:18.8]} 18... axb4 {[%clk 0:02:38.8]} 19. Rxa8 {[%clk 0:02:16.7]}
19... Rxa8 {[%clk 0:02:39.7]} 20. Nf1 {[%clk 0:02:10.9]} 20... bxc3 {[%clk
0:02:31.6]} 21. bxc3 {[%clk 0:02:10.1]} 21... Qb3 {[%clk 0:02:32.5]} 22. Bg5
{[%clk 0:01:50.9]} 22... Nf5 {[%clk 0:02:25.9]} 23. g4 {[%clk 0:01:12.6]} 23...
Nd6 {[%clk 0:02:22.3]} 24. Ne3 {[%clk 0:01:09.1]} 24... Qxc3 {[%clk 0:01:39.4]}
25. Nxd5 {[%clk 0:01:04.1]} 25... Qb3 {[%clk 0:01:37.4]} 26. Qe2 {[%clk
0:00:49.9]} 26... h6 {[%clk 0:01:14.7]} 27. Be3 {[%clk 0:00:37.7]} 27... Re8
{[%clk 0:01:06.1]} 28. Qd2 {[%clk 0:00:27.9]} 28... Ne4 {[%clk 0:00:52.5]} 29.
Qc1 {[%clk 0:00:25.7]} 29... g5 {[%clk 0:00:49.2]} 30. Nd2 {[%clk 0:00:22.3]}
30... Nxd2 {[%clk 0:00:48.1]} 31. Qxd2 {[%clk 0:00:22.9]} 31... Rd8 {[%clk
0:00:32.4]} 32. Rd1 {[%clk 0:00:13.1]} 32... Rd7 {[%clk 0:00:19.8]} 33. Bxg5
{[%clk 0:00:10.1]} 33... hxg5 {[%clk 0:00:19.1]} 34. Qxg5 {[%clk 0:00:10]} 34...
Rd6 {[%clk 0:00:17]} 35. Re1 {[%clk 0:00:05.6]} 35... Kf8 {[%clk 0:00:08.1]} 36.
Qh5 {[%clk 0:00:01.6]} 36... Rxd5 {[%clk 0:00:06.9]} 37. Qxd5 {[%clk 0:00:01.7]}
37... Qb4 {[%clk 0:00:05.5]} 38. Qd6+ {[%clk 0:00:02.2]} 38... Qxd6 {[%clk
0:00:05.6]} 39. Rd1 {[%clk 0:00:02.4]} 39... Nxd4 {[%clk 0:00:05.8]} 40. Re1
{[%clk 0:00:02.3]} 40... Bxg2 {[%clk 0:00:05.3]} 41. Kxg2 {[%clk 0:00:03.1]}
41... c3 {[%clk 0:00:05.6]} 42. Rc1 {[%clk 0:00:03.1]} 42... c2 {[%clk
0:00:05.9]} 0-1

[Event "Late-Titled-Tuesday-Blitz-September-26-2023"]
[Site "Chess.com"]
[Date "2023.09.26"]
[Round "1"]
[White "leotobares"]
[Black "bazar-wokzal"]
[Result "0-1"]
[WhiteElo "2370"]
[BlackElo "2669"]
[TimeControl "180+1"]
[EndTime "14:07:45 PDT"]
[Termination "bazar-wokzal won on time"]

1. e4 {[%clk 0:03:00.9]} 1... Nc6 {[%clk 0:02:59.5]} 2. d4 {[%clk 0:02:59.1]}
2... d5 {[%clk 0:02:59.8]} 3. exd5 {[%clk 0:02:44.5]} 3... Qxd5 {[%clk
0:02:59.1]} 4. Nf3 {[%clk 0:02:44.3]} 4... Bg4 {[%clk 0:02:58.5]} 5. Be2 {[%clk
0:02:27.3]} 5... O-O-O {[%clk 0:02:57.5]} 6. c3 {[%clk 0:02:22.8]} 6... Nf6
{[%clk 0:02:56.4]} 7. O-O {[%clk 0:02:19.4]} 7... e5 {[%clk 0:02:55.2]} 8. dxe5
{[%clk 0:02:05]} 8... Qxd1 {[%clk 0:02:43.9]} 9. Rxd1 {[%clk 0:02:04.4]} 9...
Rxd1+ {[%clk 0:02:42.9]} 10. Bxd1 {[%clk 0:02:01.5]} 10... Bxf3 {[%clk
0:02:38.6]} 11. Bxf3 {[%clk 0:01:57.7]} 11... Nxe5 {[%clk 0:02:37.6]} 12. Nd2
{[%clk 0:01:55.3]} 12... Bc5 {[%clk 0:02:36.3]} 13. b4 {[%clk 0:01:45.7]} 13...
Bb6 {[%clk 0:02:34.3]} 14. a4 {[%clk 0:01:44.7]} 14... Nd3 {[%clk 0:02:27.7]}
15. Ne4 {[%clk 0:01:34.8]} 15... Re8 {[%clk 0:01:46.9]} 16. Be3 {[%clk
0:01:12.1]} 16... Bxe3 {[%clk 0:01:39.3]} 17. Nxf6 {[%clk 0:01:05.6]} 17...
Bxf2+ {[%clk 0:01:36.3]} 18. Kf1 {[%clk 0:01:05.2]} 18... gxf6 {[%clk
0:01:36.3]} 19. Be2 {[%clk 0:01:04.6]} 19... Nxb4 {[%clk 0:00:50]} 20. Kxf2
{[%clk 0:01:01.9]} 20... Nd5 {[%clk 0:00:48.1]} 21. Rc1 {[%clk 0:00:57.4]} 21...
f5 {[%clk 0:00:44.8]} 22. Bc4 {[%clk 0:00:51.2]} 22... Re5 {[%clk 0:00:41.4]}
23. g3 {[%clk 0:00:43]} 23... Kd7 {[%clk 0:00:35.3]} 24. Rd1 {[%clk 0:00:35.1]}
24... Kd6 {[%clk 0:00:34.7]} 25. Bb3 {[%clk 0:00:31]} 25... Kc5 {[%clk
0:00:32.7]} 26. Kf3 {[%clk 0:00:24.7]} 26... c6 {[%clk 0:00:27.5]} 27. Rd3
{[%clk 0:00:19.5]} 27... a5 {[%clk 0:00:24.7]} 28. Kf2 {[%clk 0:00:17.9]} 28...
b5 {[%clk 0:00:18]} 29. axb5 {[%clk 0:00:15.1]} 29... cxb5 {[%clk 0:00:17.9]}
30. Ba2 {[%clk 0:00:13]} 30... a4 {[%clk 0:00:17.2]} 31. Rf3 {[%clk 0:00:09.7]}
31... f6 {[%clk 0:00:17.1]} 32. Rd3 {[%clk 0:00:09]} 32... Nb6 {[%clk
0:00:17.1]} 33. Rd8 {[%clk 0:00:08.3]} 33... Re4 {[%clk 0:00:14.8]} 34. Kf3
{[%clk 0:00:07.6]} 34... Nc4 {[%clk 0:00:12.5]} 35. Rc8+ {[%clk 0:00:06.5]}
35... Kb6 {[%clk 0:00:12.8]} 36. Rf8 {[%clk 0:00:05]} 36... Nd2+ {[%clk
0:00:12]} 37. Kf2 {[%clk 0:00:04.4]} 37... Re5 {[%clk 0:00:08.4]} 38. Rxf6+
{[%clk 0:00:04.4]} 38... Ka5 {[%clk 0:00:09]} 39. Rf8 {[%clk 0:00:04]} 39...
Ne4+ {[%clk 0:00:08.3]} 40. Kf3 {[%clk 0:00:03.7]} 40... Nxc3 {[%clk 0:00:09.2]}
41. Ra8+ {[%clk 0:00:02.7]} 41... Kb4 {[%clk 0:00:09.3]} 42. Bf7 {[%clk
0:00:02.1]} 42... Re7 {[%clk 0:00:08.9]} 43. Bg8 {[%clk 0:00:01.1]} 43... a3
{[%clk 0:00:09]} 0-1

[Event "Late-Titled-Tuesday-Blitz-September-26-2023"]
[Site "Chess.com"]
[Date "2023.09.26"]
[Round "1"]
[White "Zavgorodniy_Sergiy"]
[Black "chosenpr"]
[Result "1-0"]
[WhiteElo "2608"]
[BlackElo "2302"]
[TimeControl "180+1"]
[EndTime "14:07:45 PDT"]
[Termination "Zavgorodniy_Sergiy won by resignation"]

1. d4 {[%clk 0:03:00.9]} 1... Nf6 {[%clk 0:02:59]} 2. c4 {[%clk 0:03:00.5]} 2...
e6 {[%clk 0:02:59.4]} 3. Nf3 {[%clk 0:02:59.9]} 3... Bb4+ {[%clk 0:02:59]} 4.
Nbd2 {[%clk 0:02:59.6]} 4... O-O {[%clk 0:02:57.7]} 5. g3 {[%clk 0:02:59.5]}
5... d5 {[%clk 0:02:40.8]} 6. Qc2 {[%clk 0:02:59]} 6... Be7 {[%clk 0:02:36.4]}
7. Bg2 {[%clk 0:02:59.1]} 7... b6 {[%clk 0:02:34]} 8. O-O {[%clk 0:02:58.9]}
8... Bb7 {[%clk 0:02:33.2]} 9. b3 {[%clk 0:02:58.7]} 9... Nbd7 {[%clk
0:02:32.1]} 10. Bb2 {[%clk 0:02:58]} 10... c5 {[%clk 0:02:32.3]} 11. Rac1 {[%clk
0:02:57.1]} 11... Rc8 {[%clk 0:02:31.4]} 12. Qb1 {[%clk 0:02:56.8]} 12... Ne4
{[%clk 0:02:22.1]} 13. Rfd1 {[%clk 0:02:54]} 13... Ndf6 {[%clk 0:02:14]} 14.
cxd5 {[%clk 0:02:51.6]} 14... Bxd5 {[%clk 0:02:05]} 15. Nxe4 {[%clk 0:02:47.6]}
15... Bxe4 {[%clk 0:02:03.2]} 16. Qa1 {[%clk 0:02:46.7]} 16... cxd4 {[%clk
0:02:01.4]} 17. Nxd4 {[%clk 0:02:35.5]} 17... Bxg2 {[%clk 0:01:56.3]} 18. Kxg2
{[%clk 0:02:36.4]} 18... Qd5+ {[%clk 0:01:53.4]} 19. Nf3 {[%clk 0:02:30.6]}
19... Rxc1 {[%clk 0:01:51.7]} 20. Qxc1 {[%clk 0:02:27.7]} 20... Qb7 {[%clk
0:01:50.2]} 21. Kg1 {[%clk 0:02:23.5]} 21... Rc8 {[%clk 0:01:44.3]} 22. Qd2
{[%clk 0:02:21.5]} 22... h6 {[%clk 0:01:40.6]} 23. h3 {[%clk 0:02:12.2]} 23...
Rd8 {[%clk 0:01:18.5]} 24. Qc2 {[%clk 0:02:11.3]} 24... Rd5 {[%clk 0:01:14.9]}
25. Rxd5 {[%clk 0:02:08.8]} 25... Qxd5 {[%clk 0:01:11.3]} 26. Kf1 {[%clk
0:02:04.1]} 26... Qd7 {[%clk 0:01:07.2]} 27. Ne5 {[%clk 0:01:57.8]} 27... Qd5
{[%clk 0:01:05.3]} 28. Nf3 {[%clk 0:01:56.4]} 28... Qd7 {[%clk 0:01:04.7]} 29.
Qd2 {[%clk 0:01:54.6]} 29... Qxd2 {[%clk 0:01:00.9]} 30. Nxd2 {[%clk 0:01:55.5]}
30... Nd5 {[%clk 0:00:58.5]} 31. e3 {[%clk 0:01:50.1]} 31... Bf6 {[%clk
0:00:57.9]} 32. Bxf6 {[%clk 0:01:47.8]} 32... Nxf6 {[%clk 0:00:58.6]} 33. Ke2
{[%clk 0:01:48]} 33... Kf8 {[%clk 0:00:59.2]} 34. Kd3 {[%clk 0:01:48.2]} 34...
Ke7 {[%clk 0:00:59.9]} 35. Ne4 {[%clk 0:01:37.2]} 35... Nxe4 {[%clk 0:00:57.3]}
36. Kxe4 {[%clk 0:01:38.1]} 36... Kd6 {[%clk 0:00:57]} 37. Kd4 {[%clk
0:01:35.7]} 37... e5+ {[%clk 0:00:56.4]} 38. Kc4 {[%clk 0:01:32.6]} 38... Kc6
{[%clk 0:00:56]} 39. a4 {[%clk 0:01:32.3]} 39... a5 {[%clk 0:00:53.5]} 40. e4
{[%clk 0:01:29.6]} 40... g6 {[%clk 0:00:41.4]} 41. h4 {[%clk 0:01:22.9]} 41...
g5 {[%clk 0:00:30]} 42. hxg5 {[%clk 0:01:06.3]} 42... hxg5 {[%clk 0:00:29.5]}
43. f3 {[%clk 0:01:05.6]} 43... f6 {[%clk 0:00:25.9]} 44. b4 {[%clk 0:00:46.8]}
44... axb4 {[%clk 0:00:16.9]} 45. Kxb4 {[%clk 0:00:47.7]} 45... g4 {[%clk
0:00:13.7]} 46. fxg4 {[%clk 0:00:45.9]} 46... Kc7 {[%clk 0:00:12.9]} 47. Kb5
{[%clk 0:00:43.4]} 47... Kb7 {[%clk 0:00:13.6]} 48. a5 {[%clk 0:00:33.4]} 48...
bxa5 {[%clk 0:00:12.5]} 49. Kxa5 {[%clk 0:00:34.3]} 49... Kc6 {[%clk 0:00:12]}
50. Kb4 {[%clk 0:00:34.6]} 50... Kb6 {[%clk 0:00:12.2]} 51. Kc4 {[%clk
0:00:34.6]} 51... Kc6 {[%clk 0:00:12.6]} 52. g5 {[%clk 0:00:35.1]} 52... fxg5
{[%clk 0:00:11.9]} 53. g4 {[%clk 0:00:35.7]} 53... Kd6 {[%clk 0:00:08.2]} 54.
Kb5 {[%clk 0:00:34.7]} 54... Kd7 {[%clk 0:00:07.8]} 55. Kc5 {[%clk 0:00:33.9]}
55... Ke6 {[%clk 0:00:07.5]} 56. Kc6 {[%clk 0:00:34.2]} 56... Kf6 {[%clk
0:00:07.9]} 57. Kd6 {[%clk 0:00:34.5]} 57... Kf7 {[%clk 0:00:08.3]} 58. Kxe5
{[%clk 0:00:34.7]} 58... Ke7 {[%clk 0:00:09.2]} 59. Kf5 {[%clk 0:00:34.8]} 59...
Kf7 {[%clk 0:00:09.5]} 60. Kxg5 {[%clk 0:00:35.3]} 60... Ke6 {[%clk 0:00:10.4]}
61. Kf4 {[%clk 0:00:35.5]} 61... Kf6 {[%clk 0:00:10.8]} 62. e5+ {[%clk
0:00:36.1]} 62... Kg6 {[%clk 0:00:11.7]} 63. g5 {[%clk 0:00:35.7]} 63... Kf7
{[%clk 0:00:12.6]} 64. Kf5 {[%clk 0:00:36.1]} 64... Kg7 {[%clk 0:00:13.4]} 65.
e6 {[%clk 0:00:36.4]} 1-0